bitfinex-derivatives/quotes_SOLF0:USTF0_20250404
["timestamp","ask_amount","ask_price","bid_price","bid_amount"]
[1743779887771,50.45500406,120.8,120.79,74.93583907]
[1743779887976,65.25679054,120.83,120.79,66.65393907]
[1743779888174,65.25679054,120.83,120.82,58.37393907]
[1743779888378,65.25679054,120.83,120.8,105.13393907]
[1743779888579,65.25679054,120.83,120.8,46.76]
[1743779888778,65.25679054,120.83,120.8,46.81943408]
[1743779889371,0.05743005,120.84,120.8,46.81943408]
[1743779889777,0.05743005,120.84,120.8,0.05943408]
[1743779891885,32.38533023,120.83,120.8,0.05943408]
[1743779892274,32.38533023,120.83,120.8,8.34063408]
[1743779892583,32.38533023,120.83,120.8,0.05943408]
[1743779893882,32.38533023,120.83,120.8,8.34063408]
[1743779894086,0.05743005,120.84,120.8,58.43337315]
[1743779895087,8.2797,120.83,120.8,0.05943408]
[1743779895288,0.05743005,120.84,120.8,0.05943408]
[1743779896186,8.2793,120.83,120.8,0.05943408]
[1743779896392,0.05743005,120.84,120.74,298.12]
[1743779896393,58.37393907,120.82,120.74,298.12]
[1743779896580,58.37393907,120.82,120.66,430.95443907]
[1743779896581,58.37393907,120.82,120.7,46.18]
[1743779896786,58.37393907,120.8,120.7,46.18]
[1743779896981,58.37393907,120.85,120.74,58.37393907]
[1743779897192,58.37393907,120.81,120.75,46.26]
[1743779897687,0.05888608,120.79,120.77,0.06292557]
[1743779898287,33.15491592,120.79,120.77,0.06292557]
[1743779898494,41.43731592,120.79,120.77,0.06292557]
[1743779898898,8.2826,120.78,120.77,0.06292557]
[1743779899089,33.15491592,120.79,120.77,0.06292557]
[1743779900393,0.05888608,120.79,120.77,0.06292557]
[1743779901197,0.05888608,120.79,120.75,46.26]
[1743779902196,0.05888608,120.79,120.76,8.2836]
[1743779902395,0.05888608,120.79,120.76,8.33929165]
[1743779902597,0.05888608,120.79,120.76,0.05569165]
[1743779903599,0.05888608,120.79,120.66,654.08]
[1743779903792,8.2842,120.76,120.68,58.37393907]
[1743779904101,58.37393907,120.81,120.7,58.37393907]
[1743779904302,58.37393907,120.81,120.71,45.74]
[1743779904901,0.05461821,120.77,120.75,0.06105665]
[1743779905100,58.37393907,120.77,120.72,45.74]
[1743779905302,58.37393907,120.77,120.66,356.45393907]
[1743779905303,8.2872,120.72,120.67,8.2896]
[1743779905501,8.2872,120.72,120.68,45.7]
[1743779905698,58.37393907,120.77,120.68,45.7]
[1743779905903,58.37393907,120.75,120.66,298.08]
[1743779906199,58.37393907,120.75,120.67,45.68]
[1743779906397,58.37393907,120.8,120.68,58.37393907]
[1743779906597,58.37393907,120.8,120.7,0.05554603]
[1743779906598,0.06243725,120.72,120.7,0.05554603]
[1743779906796,104.05393907,120.83,120.71,45.68]
[1743779906797,8.2809,120.81,120.71,45.68]
[1743779906996,58.37393907,120.85,120.73,58.37393907]
[1743779907192,149.07848576,120.86,120.74,58.37393907]
[1743779907394,8.2796,120.83,120.77,8.2827]
[1743779907598,149.07848576,120.86,120.75,45.7]
[1743779907800,58.37393907,120.84,120.75,45.7]
[1743779907993,58.37393907,120.82,120.73,298.1]
[1743779908198,90.70454669,120.94,120.79,58.37393907]
[1743779908403,90.70454669,120.94,120.89,66.64833907]
[1743779908597,90.70454669,120.94,120.8,298.1]
[1743779908794,58.37393907,120.92,120.81,46.76]
[1743779909006,90.70454669,120.94,120.84,58.37393907]
[1743779909300,90.70454669,120.94,120.85,46.78]
[1743779909502,0.06015665,120.9,120.88,0.05239111]
[1743779911603,403.17393907,121.02,120.92,8.2729]
[1743779911814,298.1,121.02,120.93,46.7]
[1743779912105,107.23194669,121.06,120.93,54.9719]
[1743779912405,90.70454669,121.06,120.93,46.7]
[1743779912603,90.70454669,121.06,120.98,0.05665352]
[1743779912810,0.05430496,121.01,120.93,46.7]
[1743779913004,58.37393907,121.04,120.93,46.7]
[1743779913205,0.0571322,120.98,120.96,0.05555864]
[1743779913407,298.0,121.07,120.97,46.66]
[1743779913608,0.06193716,120.98,120.97,46.66]
[1743779913810,58.37393907,121.04,120.97,46.66]
[1743779914005,0.05276592,120.99,120.96,0.05365354]
[1743779914206,104.99393907,121.04,120.94,46.62]
[1743779914409,0.05691136,120.99,120.96,0.05533678]
[1743779914609,0.05691136,120.99,120.94,46.62]
[1743779914804,8.2694,120.98,120.96,0.0522191]
[1743779915008,8.2694,120.98,120.92,46.54]
[1743779915208,0.05835351,120.98,120.96,0.06236354]
[1743779915512,66.69229258,120.98,120.78,356.0]
[1743779915710,58.37393907,120.94,120.82,58.37393907]
[1743779915907,46.5,120.93,120.82,58.37393907]
[1743779916216,58.37393907,120.92,120.8,58.37393907]
[1743779916510,0.06216407,120.87,120.85,0.05403563]
[1743779916906,8.2762,120.88,120.79,104.85393907]
[1743779917103,0.05622166,120.87,120.85,0.05545913]
[1743779917308,16.5295,121.05,120.86,104.99393907]
[1743779917504,58.37393907,121.0,120.87,46.68]
[1743779917915,8.2723,120.94,120.87,46.68]
[1743779918414,0.0570386,120.92,120.89,0.05689706]
[1743779918613,297.88,121.0,120.84,105.07393907]
[1743779918810,0.06321544,120.92,120.89,0.05512723]
[1743779919017,58.37393907,120.98,120.89,46.72]
[1743779919314,0.06315879,120.92,120.89,46.77251353]
[1743779919514,105.03393907,120.96,120.92,0.05394459]
[1743779919810,0.05278566,120.92,120.85,46.66]
[1743779920013,58.37393907,120.93,120.85,46.66]
[1743779920407,8.2752,120.89,120.85,46.66]
[1743779920613,58.37393907,120.93,120.85,46.66]
[1743779920914,0.05532772,120.88,120.86,0.05947385]
[1743779921117,8.2764,120.87,120.86,0.05947385]
[1743779921319,58.37393907,120.91,120.79,8.2814]
[1743779921514,0.05405773,120.88,120.81,46.54]
[1743779921713,297.86,121.0,120.82,58.37393907]
[1743779921914,58.37393907,120.95,120.82,58.37393907]
[1743779922115,58.37393907,120.9,120.78,58.37393907]
[1743779922313,58.37393907,120.9,120.79,46.68]
[1743779922513,0.05933585,120.85,120.83,0.0549239]
[1743779922717,58.37393907,120.96,120.84,54.9385]
[1743779922917,58.37393907,120.96,120.84,46.66]
[1743779923712,104.99393907,120.96,120.85,46.6]
[1743779924018,58.37393907,120.9,120.79,58.37393907]
[1743779924207,8.2784,120.85,120.8,46.62]
[1743779924407,58.37393907,120.9,120.77,58.37393907]
[1743779924612,8.2794,120.83,120.78,46.58]
[1743779924816,58.37393907,120.88,120.78,46.58]
[1743779925017,104.93393907,120.88,120.78,46.58]
[1743779925218,0.05277802,120.84,120.78,46.58]
[1743779925517,104.89393907,120.83,120.72,46.52]
[1743779925913,46.52,120.83,120.73,58.37393907]
[1743779926315,0.05599562,120.79,120.77,0.05943101]
[1743779926819,8.2786,120.84,120.77,8.33943101]
[1743779927017,8.2786,120.84,120.79,58.37393907]
[1743779927218,58.37393907,120.92,120.8,46.6]
[1743779927914,8.2771,120.86,120.85,0.05899696]
[1743779928215,58.37393907,120.92,120.85,0.05899696]
[1743779928418,8.2762,120.88,120.85,0.05899696]
[1743779928621,0.05571091,120.9,120.85,0.05899696]
[1743779929621,8.277,120.87,120.85,0.05899696]
[1743779929818,58.37393907,120.92,120.85,0.05899696]
[1743779930022,0.06109428,120.87,120.85,0.05899696]
[1743779930219,1.65357585,120.95,120.85,0.05899696]
[1743779930420,0.06242699,120.87,120.84,46.46]
[1743779930618,58.37393907,120.94,120.84,46.46]
[1743779930821,0.06286849,120.87,120.84,46.46]
[1743779931020,58.37393907,120.94,120.88,0.05388077]
[1743779931211,1.65357585,120.95,120.88,0.05388077]
[1743779931212,8.2751,120.89,120.88,0.05388077]
[1743779931417,0.06175074,120.92,120.89,46.22]
[1743779932018,0.06175074,120.92,120.89,46.280188]
[1743779932218,8.2739,120.91,120.89,46.280188]
[1743779932622,0.06175074,120.92,120.89,46.280188]
[1743779933626,0.06175074,120.92,120.89,0.060188]
[1743779934220,8.2744,120.9,120.89,0.060188]
[1743779934619,0.06175074,120.92,120.79,297.88]
[1743779934823,58.37393907,120.9,120.77,58.37393907]
[1743779935025,58.37393907,120.88,120.77,46.14]
[1743779935327,297.88,120.93,120.77,46.14]
[1743779935328,58.37393907,120.86,120.77,46.14]
[1743779935627,58.37393907,120.84,120.74,46.1]
[1743779935817,58.37393907,120.84,120.73,46.06]
[1743779936021,0.0549589,120.83,120.8,0.05394961]
[1743779936221,46.1,120.85,120.74,58.37393907]
[1743779936424,0.05827368,120.83,120.8,0.05414047]
[1743779936817,8.33807368,120.83,120.8,0.05414047]
[1743779937023,0.05827368,120.83,120.8,0.05414047]
[1743779937623,58.37393907,120.82,120.72,46.0]
[1743779938217,58.37393907,120.82,120.7,58.37393907]
[1743779938425,58.37393907,120.82,120.71,45.92]
[1743779938626,8.2837,120.77,120.72,8.2867]
[1743779938822,0.06302819,120.78,120.75,0.0539432]
[1743779939330,0.06302819,120.78,120.7,45.86]
[1743779939526,58.37393907,120.77,120.67,45.84]
[1743779939726,8.2876,120.71,120.66,8.2905]
[1743779939932,58.37393907,120.84,120.69,58.37393907]
[1743779940231,58.37393907,120.81,120.7,8.2876]
[1743779940422,0.06136475,120.78,120.69,46.3]
[1743779940827,8.2857,120.74,120.69,46.3]
[1743779941026,0.06149241,120.75,120.68,46.22]
[1743779941228,8.34659241,120.75,120.69,8.2881]
[1743779941433,46.3,120.81,120.7,58.37393907]
[1743779941632,104.59393907,120.84,120.68,46.22]
[1743779941831,104.59393907,120.84,120.72,58.37393907]
[1743779942031,106.03514173,120.84,120.72,104.57393907]
[1743779942234,8.2816,120.8,120.74,8.285]
[1743779942534,58.37393907,120.84,120.72,104.57393907]
[1743779942727,58.37393907,120.84,120.72,46.2]
[1743779943035,0.06016208,120.79,120.77,0.06059021]
[1743779943230,8.2826,120.78,120.77,0.06059021]
[1743779943730,8.286,120.74,120.68,54.4092]
[1743779944029,58.37393907,120.78,120.68,46.12]
[1743779944241,58.37393907,120.75,120.63,58.37393907]
[1743779944433,58.37393907,120.75,120.65,8.291]
[1743779944630,46.12,120.74,120.64,46.12]
[1743779944829,8.2906,120.67,120.64,46.12]
[1743779945032,58.37393907,120.72,120.61,344.14]
[1743779945230,0.05284411,120.67,120.61,344.14]
[1743779945430,0.05284411,120.67,120.61,352.4343]
[1743779945639,0.05284411,120.67,120.61,46.1]
[1743779946437,8.2919,120.65,120.61,46.1]
[1743779946935,0.05323882,120.64,120.61,46.1]
[1743779947537,58.37393907,120.73,120.61,54.4]
[1743779947738,58.37393907,120.73,120.61,46.1]
[1743779947938,58.37393907,120.71,120.61,46.1]
[1743779948135,58.37393907,120.69,120.61,46.1]
[1743779948333,58.37393907,120.67,120.54,58.37393907]
[1743779948537,8.2947,120.61,120.56,8.2974]
[1743779948838,0.05231026,120.62,120.59,0.0551003]
[1743779949632,0.05231026,120.62,120.59,8.3506003]
[1743779949839,0.05231026,120.62,120.59,0.0551003]
[1743779951238,58.37393907,120.61,120.51,298.2]
[1743779951440,58.37393907,120.61,120.52,45.68]
[1743779951941,45.68,120.63,120.54,58.37393907]
[1743779952239,8.2954,120.6,120.52,104.05393907]
[1743779952442,0.05942839,120.6,120.52,104.05393907]
[1743779952636,58.37393907,120.61,120.46,298.3]
[1743779952831,0.05783871,120.57,120.5,58.37393907]
[1743779953342,0.05783871,120.57,120.51,45.64]
[1743779953742,8.2979,120.56,120.51,45.64]
[1743779954044,0.05783871,120.57,120.51,45.64]
[1743779954239,8.35513871,120.57,120.53,8.2998]
[1743779954439,0.05783871,120.57,120.53,8.2998]
[1743779954635,0.05783871,120.57,120.51,45.64]
[1743779954840,0.05783871,120.57,120.56,8.2977]
[1743779955138,8.2948,120.61,120.47,45.54]
[1743779955139,103.91393907,120.61,120.47,45.54]
[1743779955341,103.91393907,120.61,120.5,58.37393907]
[1743779955550,58.37393907,120.63,120.52,58.37393907]
[1743779955745,104.01393907,120.65,120.53,45.64]
[1743779955942,58.37393907,120.63,120.53,45.64]
[1743779956143,104.01393907,120.65,120.53,45.64]
[1743779956144,0.0526337,120.6,120.58,3.871e-05]
[1743779956342,58.37393907,120.59,120.46,58.37393907]
[1743779956542,58.37393907,120.56,120.47,45.62]
[1743779956736,103.97393907,120.56,120.45,45.6]
[1743779957136,58.37393907,120.54,120.44,45.58]
[1743779957340,8.3047,120.46,120.44,45.58]
[1743779957539,8.3047,120.46,120.41,53.8278]
[1743779957741,0.06252707,120.45,120.41,53.8278]
[1743779958044,0.06252707,120.45,120.41,45.56]
[1743779958246,0.06252707,120.45,120.39,58.37393907]
[1743779958440,0.06252707,120.45,120.39,66.68283907]
[1743779958746,0.06252707,120.45,120.39,45.52]
[1743779958943,8.3088,120.4,120.35,112.16573907]
[1743779959142,58.37393907,120.46,120.35,45.48]
[1743779959344,45.48,120.51,120.39,58.37393907]
[1743779959543,58.37393907,120.51,120.4,45.48]
[1743779959743,58.37393907,120.49,120.4,45.48]
[1743779959944,8.3044,120.47,120.41,8.3075]
[1743779960247,45.46,120.5,120.42,45.48]
[1743779960746,58.37393907,120.49,120.42,45.48]
[1743779960939,0.05971956,120.47,120.45,0.05586343]
[1743779962647,58.43365863,120.47,120.37,58.37393907]
[1743779962950,58.37393907,120.47,120.38,45.34]
[1743779963151,58.37393907,120.47,120.39,45.32]
[1743779963451,58.37393907,120.47,120.4,45.28]
[1743779963951,58.37393907,120.54,120.42,58.37393907]
[1743779964250,58.37393907,120.5,120.4,344.0]
[1743779964450,8.3046,120.46,120.41,8.3077]
[1743779964645,8.3046,120.46,120.42,45.26]
[1743779965043,58.37393907,120.48,120.42,45.26]
[1743779965251,0.05664051,120.45,120.39,45.2]
[1743779965445,8.3075,120.42,120.39,45.2]
[1743779965652,58.37393907,120.44,120.33,58.37393907]
[1743779965848,58.37393907,120.44,120.34,45.14]
[1743779966049,58.37393907,120.44,120.36,8.3115]
[1743779966250,58.37393907,120.42,120.34,45.12]
[1743779966550,0.0525423,120.41,120.34,45.12]
[1743779967151,8.3091,120.4,120.35,8.3119]
[1743779967358,0.0525423,120.41,120.34,45.12]
[1743779967555,58.37393907,120.42,120.34,45.12]
[1743779967753,0.06381826,120.39,120.35,8.3119]
[1743779968156,8.3102,120.38,120.34,45.12]
[1743779968357,0.06381826,120.39,120.3,357.15393907]
[1743779968556,58.37393907,120.42,120.31,45.08]
[1743779968755,0.05983552,120.36,120.31,45.08]
[1743779969457,0.05983552,120.36,120.3,298.78]
[1743779969653,0.05983552,120.36,120.31,45.0]
[1743779970150,0.05983552,120.36,120.32,58.37393907]
[1743779970457,0.05983552,120.36,120.34,8.3125]
[1743779970658,0.05983552,120.36,120.35,44.98]
[1743779970853,0.05983552,120.36,120.35,53.2922]
[1743779971057,0.05983552,120.36,120.35,44.98]
[1743779971354,0.05983552,120.36,120.35,53.2922]
[1743779971555,357.25393907,120.44,120.35,53.2922]
[1743779971756,58.37393907,120.44,120.35,44.98]
[1743779971956,58.37393907,120.44,120.35,53.2919]
[1743779972460,8.3106,120.38,120.35,44.98]
[1743779972757,0.05317653,120.38,120.35,45.03983552]
[1743779973255,0.05317653,120.38,120.35,0.05983552]
[1743779973563,8.36367653,120.38,120.35,44.83983552]
[1743779973860,0.05317653,120.38,120.35,44.83983552]
[1743779974160,0.05317653,120.38,120.36,8.3111]
[1743779974363,0.05317653,120.38,120.35,44.83983552]
[1743779974562,92.25144239,120.54,120.41,8.3077]
[1743779974563,8.3056,120.45,120.41,8.3077]
[1743779974763,58.37393907,120.52,120.42,44.64]
[1743779974957,58.37393907,120.5,120.42,44.64]
[1743779975156,58.37393907,120.48,120.39,44.64]
[1743779975862,0.06068916,120.45,120.42,0.06248606]
[1743779976256,8.3067,120.43,120.42,0.06248606]
[1743779976961,0.06068916,120.45,120.42,0.06248606]
[1743779977159,0.06068916,120.45,120.43,44.52]
[1743779977959,8.36628916,120.45,120.43,44.52]
[1743779978463,8.3065,120.44,120.42,0.06248606]
[1743779978664,0.06068916,120.45,120.42,0.06248606]
[1743779978960,8.3067,120.43,120.42,0.06248606]
[1743779979158,0.06068916,120.45,120.42,0.06248606]
[1743779979654,8.3067,120.43,120.42,0.06248606]
[1743779980162,8.3,120.43,120.33,298.98]
[1743779980455,58.37393907,120.37,120.19,299.0]
[1743779980660,357.37393907,120.39,120.28,58.37393907]
[1743779980859,299.0,120.39,120.29,44.42]
[1743779981260,0.0619602,120.35,120.33,0.05052599]
[1743779981656,8.3745602,120.35,120.33,0.05052599]
[1743779981864,0.0619602,120.35,120.33,0.05052599]
[1743779982358,0.0619602,120.35,120.34,44.26]
[1743779983964,8.3091,120.4,120.34,44.26]
[1743779984162,58.37393907,120.45,120.34,102.63393907]
[1743779984363,58.37393907,120.47,120.34,102.63393907]
[1743779984560,11.37677019,120.43,120.39,8.309]
[1743779984762,11.37677019,120.43,120.4,44.26]
[1743779985059,19.68387019,120.43,120.4,44.31854044]
[1743779985256,11.43003455,120.43,120.4,44.31854044]
[1743779985663,11.43003455,120.43,120.4,0.05854044]
[1743779985963,58.37393907,120.42,120.4,0.05854044]
[1743779986162,8.3081,120.41,120.4,0.05854044]
[1743779986463,58.37393907,120.42,120.35,44.1]
[1743779987456,0.05722034,120.4,120.37,0.05238404]
[1743779987758,8.3101,120.38,120.37,0.05238404]
[1743779988461,102.35115941,120.4,120.28,58.37393907]
[1743779988666,58.37393907,120.38,120.26,58.37393907]
[1743779988865,8.3141,120.33,120.28,8.3166]
[1743779989069,58.37393907,120.38,120.28,8.3166]
[1743779989463,58.37393907,120.38,120.29,8.3161]
[1743779989665,0.05535463,120.34,120.29,8.3161]
[1743779989962,0.05535463,120.34,120.3,43.8]
[1743779992068,0.05535463,120.34,120.28,43.68]
[1743779992270,8.3146,120.32,120.29,43.68]
[1743779992468,0.06272763,120.32,120.29,43.68]
[1743779993070,208.43381721,120.3,120.0,102.87393907]
[1743779993263,8.3249,120.17,120.06,58.37393907]
[1743779993566,58.37393907,120.24,120.12,58.37393907]
[1743779993771,58.37393907,120.24,120.13,44.6]
[1743779993966,0.05458522,120.19,120.15,58.37393907]
[1743779994167,0.05458522,120.19,120.14,3.2122586]
[1743779994168,44.58,120.28,120.16,299.14]
[1743779994373,58.37393907,120.31,120.17,102.95393907]
[1743779994772,58.37393907,120.28,120.18,3.14278305]
[1743779994964,58.37393907,120.28,120.19,3.14278305]
[1743779995163,58.37393907,120.22,120.07,1.4483103]
[1743779995364,8.3235,120.19,120.09,58.37393907]
[1743779995568,44.54,120.23,120.13,0.05614693]
[1743779995773,58.37393907,120.24,120.14,44.72]
[1743779996071,58.37393907,120.24,120.14,343.86]
[1743779996272,11.37677019,120.28,120.15,58.37393907]
[1743779996474,69.75070926,120.28,120.15,58.37393907]
[1743779996678,8.3193,120.25,120.19,8.3228]
[1743779996975,0.05580775,120.23,120.21,0.06172482]
[1743779997373,11.37677019,120.28,120.21,8.38172482]
[1743779997574,11.37677019,120.28,120.21,299.26172482]
[1743779997876,11.37677019,120.28,120.21,357.63566389]
[1743779998073,11.37677019,120.28,120.21,299.26172482]
[1743779998274,8.3189,120.26,120.21,299.26172482]
[1743779998473,69.75070926,120.28,120.21,0.06172482]
[1743779998672,0.05893244,120.25,120.21,0.06172482]
[1743779999677,0.00802464,120.25,120.22,58.37393907]
[1743779999873,0.00802464,120.25,120.24,8.3198]
[1743780000080,0.00802464,120.25,120.24,44.52]
[1743780000576,0.00802464,120.25,120.24,119.53373907]
[1743780000978,0.00802464,120.25,120.24,44.52]
[1743780001377,69.75070926,120.37,120.24,111.21393907]
[1743780001575,11.37677019,120.37,120.27,58.37393907]
[1743780001771,11.37677019,120.37,120.28,44.42]
[1743780002079,11.37677019,120.37,120.33,58.37393907]
[1743780002378,11.37677019,120.37,120.34,44.46]
[1743780002580,0.05675032,120.36,120.34,8.36925794]
[1743780002777,0.05675032,120.36,120.34,44.53655794]
[1743780002973,0.05675032,120.36,120.34,0.05655794]
[1743780003178,8.3122,120.35,120.34,0.05655794]
[1743780003377,58.43068939,120.36,120.28,299.26]
[1743780003680,58.37393907,120.36,120.27,44.42]
[1743780003876,58.37393907,120.38,120.27,44.42]
[1743780004078,58.37393907,120.34,120.2,44.48]
[1743780004275,58.37393907,120.34,120.22,58.37393907]
[1743780004479,0.05494847,120.29,120.27,0.0581932]
[1743780004780,58.37393907,120.31,120.21,343.9]
[1743780004971,58.37393907,120.26,120.17,44.68]
[1743780005176,8.3198,120.24,120.19,8.3229]
[1743780005481,44.68,120.28,120.17,44.68]
[1743780005681,58.37393907,120.3,120.18,58.37393907]
[1743780005881,0.05721205,120.24,120.21,0.05467402]
[1743780006080,0.05721205,120.24,120.18,58.37393907]
[1743780006081,58.37393907,120.3,120.22,44.6]
[1743780006282,0.06023869,120.24,120.23,44.6]
[1743780006480,58.37393907,120.3,120.23,44.6]
[1743780006675,0.06003801,120.25,120.23,44.6]
[1743780006882,8.3147,120.32,120.27,8.3171]
[1743780007078,58.37393907,120.34,120.27,44.56]
[1743780007286,58.37393907,120.32,120.27,44.56]
[1743780007486,58.37393907,120.33,120.27,44.56]
[1743780007682,0.25,120.3,120.27,44.56]
[1743780008184,3.605e-05,120.3,120.28,58.37393907]
[1743780008580,3.605e-05,120.3,120.29,299.28]
[1743780008779,3.605e-05,120.3,120.29,307.5964]
[1743780009280,3.605e-05,120.3,120.29,315.9164]
[1743780009586,45.25427351,120.35,120.34,8.3129]
[1743780009786,45.25427351,120.35,120.34,52.7129]
[1743780009983,8.3084,120.41,120.36,8.3111]
[1743780010186,11.37677019,120.42,120.34,44.4]
[1743780010685,0.06139629,120.39,120.37,0.0592422]
[1743780010984,0.06139629,120.39,120.38,44.32]
[1743780011887,0.06139629,120.39,120.37,0.0592422]
[1743780012084,11.37677019,120.42,120.41,8.3081]
[1743780012289,11.39836162,120.51,120.4,58.37393907]
[1743780012484,11.39836162,120.51,120.42,58.37393907]
[1743780012785,11.39836162,120.51,120.43,44.36]
[1743780013189,8.3038,120.48,120.44,8.3059]
[1743780013382,8.35765834,120.48,120.46,0.06228939]
[1743780013584,8.35765834,120.48,120.47,44.28]
[1743780013785,0.05385834,120.48,120.47,44.28]
[1743780014782,58.37393907,120.57,120.47,44.28]
[1743780015091,92.25144239,120.59,120.48,58.37393907]
[1743780015290,8.2973,120.57,120.5,8.3012]
[1743780015491,33.87750332,120.59,120.52,58.37393907]
[1743780015784,33.87750332,120.59,120.54,58.37393907]
[1743780015990,33.87750332,120.59,120.56,58.37393907]
[1743780016186,337.30639246,120.67,120.55,400.12]
[1743780016383,337.30639246,120.67,120.6,58.37393907]
[1743780016580,337.30639246,120.67,120.61,44.88]
[1743780017089,337.30639246,120.67,120.62,8.2935]
[1743780017290,0.06111513,120.65,120.63,0.0542569]
[1743780017490,0.06111513,120.65,120.64,8.2922]
[1743780017792,0.06111513,120.65,120.63,0.0542569]
[1743780020091,0.31111513,120.65,120.63,0.0542569]
[1743780021493,0.31111513,120.65,120.64,8.2922]
[1743780021986,0.31111513,120.65,120.63,8.3470569]
[1743780022191,0.31111513,120.65,120.63,0.0542569]
[1743780024089,0.31111513,120.65,120.63,8.3470569]
[1743780024392,0.31111513,120.65,120.63,0.0542569]
[1743780025191,0.31111513,120.65,120.64,8.2922]
[1743780025887,0.31111513,120.65,120.63,0.0542569]
[1743780026994,110.8850542,120.65,120.54,43.92]
[1743780027190,58.37393907,120.63,120.54,45.57920026]
[1743780027390,58.37393907,120.59,120.54,1.65920026]
[1743780027595,58.37393907,120.57,120.48,399.92]
[1743780028196,0.05736933,120.54,120.51,0.05253191]
[1743780028396,0.05736933,120.54,120.48,43.9]
[1743780028591,0.05736933,120.54,120.51,0.0571992]
[1743780029096,8.3015,120.51,120.46,43.86]
[1743780029297,58.37393907,120.51,120.4,58.37393907]
[1743780029496,58.37393907,120.51,120.41,43.84]
[1743780029797,58.37393907,120.51,120.43,8.3062]
[1743780030096,8.3043,120.47,120.41,52.1476]
[1743780030296,8.3043,120.47,120.46,0.05688755]
[1743780030499,58.37393907,120.49,120.41,43.84]
[1743780030699,58.37393907,120.49,120.45,0.06084216]
[1743780030700,8.36673722,120.48,120.45,0.06084216]
[1743780030895,8.3037,120.48,120.43,43.74]
[1743780031100,8.36562826,120.48,120.45,0.0599039]
[1743780031495,58.37393907,120.47,120.38,43.68]
[1743780031692,58.37393907,120.41,120.32,43.7]
[1743780031893,58.37393907,120.39,120.29,43.7]
[1743780032096,102.07393907,120.43,120.3,58.37393907]
[1743780032293,58.37393907,120.45,120.32,58.37393907]
[1743780032507,58.37393907,120.45,120.34,58.37393907]
[1743780032803,0.05480426,120.4,120.37,0.06355107]
[1743780033006,58.37393907,120.47,120.37,43.64]
[1743780033201,0.06098099,120.4,120.37,43.69305776]
[1743780033409,298.72,120.48,120.37,102.01393907]
[1743780034215,8.3044,120.47,120.41,8.3075]
[1743780034410,298.72,120.48,120.41,51.8875]
[1743780034611,0.05271384,120.45,120.43,0.06335875]
[1743780034810,8.306,120.44,120.38,43.5]
[1743780035012,8.306,120.44,120.38,43.52]
[1743780035311,58.37393907,120.47,120.38,43.52]
[1743780035515,298.72,120.48,120.38,43.52]
[1743780035813,8.3043,120.47,120.41,8.3075]
[1743780036009,58.37393907,120.51,120.42,43.51739192]
[1743780036214,357.17393907,120.53,120.43,43.46]
[1743780036416,357.17393907,120.53,120.44,43.48]
[1743780036717,8.3023,120.5,120.44,51.7854]
[1743780036910,357.17393907,120.53,120.44,43.48]
[1743780037115,298.8,120.53,120.44,43.48]
[1743780037414,0.0533622,120.5,120.47,0.05706038]
[1743780037610,58.37393907,120.57,120.48,43.4]
[1743780037918,8.2996,120.54,120.48,51.703]
[1743780038114,101.69393907,120.55,120.45,58.37393907]
[1743780038320,58.37393907,120.53,120.43,43.32]
[1743780038618,101.69393907,120.55,120.43,101.69393907]
[1743780038918,0.06187864,120.49,120.47,0.06145484]
[1743780039113,101.69393907,120.55,120.43,101.69393907]
[1743780039314,0.06297965,120.49,120.47,0.05783956]
[1743780039510,101.71393907,120.55,120.47,43.32]
[1743780039714,0.06206316,120.49,120.47,43.37494075]
[1743780040017,101.71393907,120.55,120.47,43.32]
[1743780040219,0.06192452,120.49,120.47,43.37324564]
[1743780040517,0.05466963,120.49,120.47,43.3810571]
[1743780040912,0.05466963,120.49,120.47,0.0610571]
[1743780041219,58.4286087,120.49,120.4,43.18]
[1743780041412,58.37393907,120.49,120.4,43.18]
[1743780041612,58.37393907,120.47,120.4,43.18]
[1743780042218,8.3051,120.46,120.4,51.4887]
[1743780042418,0.05707242,120.45,120.42,0.0599836]
[1743780042621,58.37393907,120.66,120.43,58.37393907]
[1743780042822,58.37393907,120.58,120.46,58.37393907]
[1743780043020,58.37393907,120.58,120.48,58.37393907]
[1743780043222,58.37393907,120.56,120.49,43.26]